fUSD/lending_fUSD_20240612
["ID","MTS","AMOUNT","RATE_DAILY","PERIOD"]
[329186912,1718165444659,-184.760096,0.00015,2]
[329186913,1718165444673,-151.0,0.00015,2]
[329186914,1718165444685,-719.0,0.00015014,2]
[329186915,1718165444697,-526.55,0.00015021,2]
[329186916,1718165444708,-164.14,0.00015021,2]
[329186917,1718165444720,-526.55,0.00015021,2]
[329186918,1718165444732,-836.9,0.00015021,2]
[329186919,1718165444746,-526.55,0.00015021,2]
[329186921,1718165444757,-526.55,0.00015021,2]
[329186923,1718165444769,-526.55,0.00015021,2]
[329186925,1718165444782,-277.12,0.00015068,2]
[329186928,1718165444796,-644.39,0.00015242,2]
[329186930,1718165444808,-384.257056,0.00015342,2]
[329186932,1718165444821,-1345.47,0.00015445,2]
[329186934,1718165444834,-2413.0,0.00015533,2]
[329186936,1718165444846,-1000.0,0.00015633,2]
[329186938,1718165444860,-3000.0,0.0001564,2]
[329186940,1718165444873,-161.900372,0.0001564,2]
[329186943,1718165444886,-155.476477,0.0001564,2]
[329186945,1718165444899,-151.0,0.0001564,2]
[329186947,1718165444912,-151.0,0.0001564,2]
[329186949,1718165444924,-151.0,0.0001564,2]
[329186951,1718165444937,-484.970837,0.0001564,2]
[329186953,1718165444950,-151.0,0.0001564,2]
[329186955,1718165444962,-484.970837,0.0001564,2]
[329186958,1718165444976,-151.0,0.0001564,2]
[329186960,1718165444992,-151.0,0.0001564,2]
[329186962,1718165445003,-151.0,0.0001564,2]
[329186964,1718165445016,-184.760096,0.0001564,2]
[329186966,1718165445030,-184.760096,0.0001564,2]
[329186968,1718165445043,-151.0,0.0001564,2]
[329186970,1718165445056,-286.75015336,0.00015692,2]
[329186972,1718165445068,-277.12,0.00015753,2]
[329186975,1718165445081,-151.0,0.00015755,2]
[329186977,1718165445093,-215.84384,0.00015755,2]
[329186979,1718165445106,-215.84384,0.00015755,2]
[329186981,1718165445118,-151.0,0.00015755,2]
[329186983,1718165445130,-151.0,0.00015755,2]
[329186985,1718165445143,-151.0,0.00015755,2]
[329186987,1718165445156,-151.0,0.00015755,2]
[329186990,1718165445193,-151.0,0.00015755,2]
[329186992,1718165445207,-151.0,0.00015755,2]
[329186994,1718165445219,-151.0,0.00015755,2]
[329186996,1718165445231,-151.0,0.00015755,2]
[329186998,1718165445243,-151.0,0.00015755,2]
[329187000,1718165445255,-151.0,0.00015755,2]
[329187002,1718165445267,-151.0,0.00015755,2]
[329187005,1718165445278,-151.0,0.00015755,2]
[329187007,1718165445291,-151.0,0.00015755,2]
[329187009,1718165445303,-151.0,0.00015755,2]
[329187011,1718165445318,-177.10456,0.00015755,2]
[329187013,1718165445331,-151.0,0.00015755,2]
[329187015,1718165445343,-151.0,0.00015755,2]
[329187017,1718165445355,-151.0,0.00015755,2]
[329187020,1718165445367,-152.025843,0.00015755,2]
[329187022,1718165445381,-215.937393,0.00015755,2]
[329187024,1718165445394,-378.261335,0.00015755,2]
[329187026,1718165445406,-378.261335,0.00015755,2]
[329187028,1718165445417,-151.0,0.00015755,2]
[329187030,1718165445429,-151.0,0.00015755,2]
[329187032,1718165445441,-252.721658,0.00015755,2]
[329187034,1718165445452,-747.171159,0.00015755,2]
[329187037,1718165445464,-252.721658,0.00015755,2]
[329187039,1718165445476,-747.171159,0.00015755,2]
[329187041,1718165445487,-151.0,0.00015755,2]
[329187043,1718165445499,-151.0,0.00015755,2]
[329187045,1718165445511,-170.397449,0.00015755,2]
[329187047,1718165445524,-23768.53060804,0.00015755,2]
[329187050,1718165445536,-180.88,0.00015831,2]
[329187052,1718165445548,-526.55,0.00015843,2]
[329187054,1718165445561,-526.55,0.00015843,2]
[329187056,1718165445573,-526.55,0.00015843,2]
[329187058,1718165445585,-526.55,0.00015843,2]
[329187060,1718165445596,-185.644468,0.00015884,2]
[329187062,1718165445608,-151.0,0.00015884,2]
[329187065,1718165445620,-152.118894,0.00015884,2]
[329187067,1718165445632,-257.1365803,0.00015884,2]
[329187069,1718165445645,-152.569622,0.00015884,2]
[329187071,1718165445657,-151.0,0.00015884,2]
[329187073,1718165445668,-322.60322668,0.0001606,2]
[329187076,1718165445681,-151.0,0.00016116,2]
[329187078,1718165445693,-151.0,0.00016116,2]
[329187080,1718165445705,-151.0,0.00016116,2]
[329187082,1718165445717,-151.0,0.00016116,2]
[329187084,1718165445730,-151.0,0.00016116,2]
[329187086,1718165445742,-151.0,0.00016116,2]
[329187088,1718165445754,-151.0,0.00016116,2]
[329187091,1718165445766,-151.0,0.00016116,2]
[329187093,1718165445778,-282.28974,0.00016116,2]
[329187095,1718165445791,-152.598439,0.00016116,2]
[329187097,1718165445804,-151.0,0.00016116,2]
[329187099,1718165445816,-152.501722,0.00016116,2]
[329187101,1718165445828,-384.257056,0.00016164,2]
[329187103,1718165445840,-1539.83,0.00016438,2]
[329187106,1718165445854,-195.181411,0.00016438,2]
[329187108,1718165445866,-277.12,0.00016438,2]
[329187110,1718165445879,-1807.13979758,0.000165,2]
[329187112,1718165445892,-286.75015336,0.00016588,2]
[329187114,1718165445905,-5008.08709582,0.00016607,2]
[329187116,1718165445916,-23768.53060804,0.00016683,2]
[329187118,1718165445928,-180.26,0.00016712,2]
[329187121,1718165445940,-3000.0,0.0001689,2]
[329187123,1718165445952,-192.7524836,0.000169,2]
[329187125,1718165445964,-1063.2906446,0.00016931,2]
[329187127,1718165445977,-384.257056,0.00016986,2]
[329187129,1718165445991,-300.0,0.00017123,2]
[329187131,1718165446003,-1000.0,0.00017196,2]
[329187133,1718165446016,-5020.97463926,0.00017314,2]
[329187135,1718165446029,-3324.84170949,0.0001735,2]
[329187137,1718165446040,-286.75015336,0.00017485,2]
[329187139,1718165446051,-644.39,0.00017506,2]
[329187142,1718165446063,-167.12061151,0.00017516,2]
[329187144,1718165446075,-23768.53060804,0.00017611,2]
[329187146,1718165446087,-384.257056,0.00017808,2]
[329187148,1718165446099,-38079.0,0.00017838,2]
[329187150,1718165446110,-290.0,0.00017838,2]
[329187152,1718165446121,-3039.793,0.00017838,2]
[329187154,1718165446133,-478.834,0.00017838,2]
[329187156,1718165446145,-1170.677,0.00017838,2]
[329187158,1718165446156,-1195.0,0.00017838,2]
[329187160,1718165446178,-500.0,0.00017868,2]
[329187162,1718165446189,-500.0,0.00017868,2]
[329187164,1718165446201,-500.0,0.00017868,2]
[329187166,1718165446211,-500.0,0.00017868,2]
[329187168,1718165446222,-500.0,0.00017868,2]
[329187170,1718165446233,-500.0,0.00017868,2]
[329187172,1718165446244,-500.0,0.00017868,2]
[329187174,1718165446255,-500.0,0.00017868,2]
[329187176,1718165446266,-500.0,0.00017868,2]
[329187178,1718165446277,-500.0,0.00017868,2]
[329187180,1718165446288,-500.0,0.00017868,2]
[329187183,1718165446298,-500.0,0.00017868,2]
[329187185,1718165446309,-500.0,0.00017868,2]
[329187187,1718165446319,-500.0,0.00017868,2]
[329187189,1718165446331,-500.0,0.00017868,2]
[329187191,1718165446342,-500.0,0.00017868,2]
[329187193,1718165446354,-500.0,0.00017868,2]
[329187195,1718165446366,-500.0,0.00017868,2]
[329187198,1718165446377,-500.0,0.00017868,2]
[329187201,1718165446389,-500.0,0.00017868,2]
[329187204,1718165446400,-500.0,0.00017868,2]
[329187207,1718165446412,-500.0,0.00017868,2]
[329187210,1718165446423,-500.0,0.00017868,2]
[329187213,1718165446435,-500.0,0.00017868,2]
[329187216,1718165446447,-500.0,0.00017868,2]
[329187219,1718165446458,-500.0,0.00017868,2]
[329187222,1718165446470,-500.0,0.00017868,2]
[329187226,1718165446482,-500.0,0.00017868,2]
[329187229,1718165446494,-500.0,0.00017868,2]
[329187232,1718165446506,-500.0,0.00017868,2]
[329187235,1718165446518,-500.0,0.00017868,2]
[329187238,1718165446529,-500.0,0.00017868,2]
[329187241,1718165446540,-500.0,0.00017868,2]
[329187243,1718165446551,-500.0,0.00017868,2]
[329187245,1718165446565,-500.0,0.00017868,2]
[329187248,1718165446576,-500.0,0.00017868,2]
[329187250,1718165446588,-500.0,0.00017868,2]
[329187253,1718165446599,-500.0,0.00017868,2]
[329187256,1718165446610,-500.0,0.00017868,2]
[329187259,1718165446621,-500.0,0.00017868,2]
[329187262,1718165446632,-500.0,0.00017868,2]
[329187265,1718165446644,-500.0,0.00017868,2]
[329187268,1718165446655,-500.0,0.00017868,2]
[329187270,1718165446666,-500.0,0.00017868,2]
[329187273,1718165446678,-500.0,0.00017868,2]
[329187275,1718165446689,-500.0,0.00017868,2]
[329187277,1718165446700,-500.0,0.00017868,2]
[329187279,1718165446711,-500.0,0.00017868,2]
[329187281,1718165446722,-500.0,0.00017868,2]
[329187283,1718165446733,-500.0,0.00017868,2]
[329187285,1718165446744,-500.0,0.00017868,2]
[329187287,1718165446755,-500.0,0.00017868,2]
[329187289,1718165446767,-500.0,0.00017868,2]
[329187291,1718165446778,-500.0,0.00017868,2]
[329187293,1718165446789,-500.0,0.00017868,2]
[329187295,1718165446800,-500.0,0.00017868,2]
[329187298,1718165446812,-500.0,0.00017868,2]
[329187300,1718165446823,-500.0,0.00017868,2]
[329187302,1718165446835,-500.0,0.00017868,2]
[329187304,1718165446846,-500.0,0.00017868,2]
[329187306,1718165446857,-500.0,0.00017868,2]
[329187308,1718165446869,-500.0,0.00017868,2]
[329187310,1718165446880,-500.0,0.00017868,2]
[329187312,1718165446891,-500.0,0.00017868,2]
[329187314,1718165446903,-500.0,0.00017868,2]
[329187316,1718165446914,-500.0,0.00017868,2]
[329187318,1718165446924,-500.0,0.00017868,2]
[329187320,1718165446936,-500.0,0.00017868,2]
[329187322,1718165446947,-500.0,0.00017868,2]
[329187325,1718165446958,-500.0,0.00017868,2]
[329187327,1718165446970,-500.0,0.00017868,2]
[329187329,1718165446984,-500.0,0.00017868,2]
[329187331,1718165446995,-500.0,0.00017868,2]
[329187333,1718165447007,-500.0,0.00017868,2]
[329187335,1718165447019,-500.0,0.00017868,2]
[329187337,1718165447030,-500.0,0.00017868,2]
[329187339,1718165447042,-500.0,0.00017868,2]
[329187341,1718165447053,-500.0,0.00017868,2]
[329187342,1718165447068,-500.0,0.00017868,2]
[329187343,1718165447080,-500.0,0.00017868,2]
[329187344,1718165447090,-151.0,0.00017868,2]
[329187345,1718165447102,-151.0,0.00017868,2]
[329187346,1718165447113,-151.0,0.00017868,2]
[329187347,1718165447124,-151.0,0.00017868,2]
[329187348,1718165447135,-151.0,0.00017868,2]
[329187349,1718165447148,-378.261335,0.00017868,2]
[329187350,1718165447160,-378.261335,0.00017868,2]
[329187351,1718165447182,-151.0,0.00017868,2]
[329187352,1718165447194,-151.0,0.00017868,2]
[329187354,1718165447207,-252.721658,0.00017868,2]
[329187356,1718165447218,-747.171159,0.00017868,2]
[329187358,1718165447229,-252.721658,0.00017868,2]
[329187361,1718165447240,-747.171159,0.00017868,2]
[329187363,1718165447251,-151.0,0.00017868,2]
[329187365,1718165447263,-151.0,0.00017868,2]
[329187367,1718165447274,-151.0,0.00017868,2]
[329187369,1718165447285,-167.6044,0.00017868,2]
[329187371,1718165447297,-151.0,0.00017868,2]
[329187373,1718165447308,-484.970837,0.00017868,2]
[329187375,1718165447320,-151.0,0.00017868,2]
[329187377,1718165447331,-484.970837,0.00017868,2]
[329187437,1718165447845,-151.0,0.00017868,2]
[329187440,1718165447958,-184.760096,0.00017868,2]
[329187444,1718165447993,-184.760096,0.00017868,2]
[329187447,1718165448015,-151.0,0.00017973,2]
[329187449,1718165448028,-215.84384,0.00017973,2]
[329187451,1718165448039,-215.84384,0.00017973,2]
[329187453,1718165448049,-151.0,0.00017973,2]
[329187455,1718165448061,-151.0,0.00017973,2]
[329187457,1718165448071,-151.0,0.00017973,2]
[329187459,1718165448081,-151.0,0.00017973,2]
[329187461,1718165448091,-151.0,0.00017973,2]
[329187463,1718165448100,-152.730458,0.00017973,2]
[329187465,1718165448111,-151.0,0.00017973,2]
[329187467,1718165448121,-151.0,0.00017973,2]
[329187469,1718165448131,-195.181411,0.00017973,2]
[329187471,1718165448142,-151.0,0.00017973,2]
[329187473,1718165448152,-153.024623,0.00017973,2]
[329187475,1718165448163,-151.0,0.00017973,2]
[329187477,1718165448175,-151.0,0.00017973,2]
[329187478,1718165448191,-979.0,0.00017973,2]
[329187480,1718165448202,-359.0,0.00017973,2]
[329187482,1718165448212,-335.928,0.00017973,2]
[329187484,1718165448222,-441.0,0.00017973,2]
[329187486,1718165448232,-1651.0,0.00017973,2]
[329187488,1718165448243,-1831.0,0.00017973,2]
[329187491,1718165448253,-501.756,0.00017973,2]
[329187493,1718165448264,-447.0,0.00017973,2]
[329187495,1718165448274,-1693.712,0.00017973,2]
[329187497,1718165448285,-1304.0,0.00017973,2]
[329187499,1718165448295,-3177.0,0.00017973,2]
[329187501,1718165448305,-475.12120634,0.00018,2]
[329187503,1718165448316,-654.64903975,0.00018,2]
[329187505,1718165448326,-151.36,0.00018102,2]
[329187507,1718165448336,-150.0,0.00018102,2]
[329187509,1718165448346,-3000.0,0.0001814,2]
[329187511,1718165448357,-1345.47,0.00018185,2]
[329187513,1718165448367,-322.60322668,0.00018219,2]
[329187515,1718165448377,-286.75015336,0.00018381,2]
[329187517,1718165448387,-1774.0,0.000184,2]
[329187519,1718165448399,-652.0,0.000184,2]
[329187521,1718165448410,-180.88,0.00018444,2]
[329187523,1718165448420,-500.0,0.000185,2]
[329187525,1718165448430,-23768.53060804,0.00018539,2]
[329187527,1718165448440,-151.0,0.00018539,2]
[329187529,1718165448451,-151.0,0.00018539,2]
[329187531,1718165448461,-151.0,0.00018539,2]
[329187533,1718165448472,-384.257056,0.0001863,2]
[329187535,1718165448482,-1000.0,0.00018759,2]
[329187537,1718165448493,-355.0,0.000188,2]
[329187539,1718165448503,-1000.0,0.000188,2]
[329187541,1718165448512,-172.9,0.00018822,2]
[329187543,1718165448523,-156.94035857,0.00019,2]
[329187545,1718165448533,-412.02733324,0.00019,2]
[329187547,1718165448543,-151.0,0.00019,2]
[329187549,1718165448554,-33021.61679311,0.00019,2]
[329187551,1718165448564,-171.01,0.00019138,2]
[329187553,1718165448574,-505.93565758,0.00019178,2]
[329187555,1718165448584,-507.69254924,0.00019178,2]
[329187557,1718165448594,-502.70977119,0.00019178,2]
[329187559,1718165448604,-503.06012184,0.00019178,2]
[329187561,1718165448614,-229.16327866,0.00019178,2]
[329187563,1718165448625,-500.0,0.00019178,2]
[329187565,1718165448635,-424.9085774,0.00019178,2]
[329187567,1718165448647,-284.16975503,0.00019178,2]
[329187569,1718165448657,-196.46969239,0.00019178,2]
[329187571,1718165448667,-395.38463951,0.00019178,2]
[329187573,1718165448678,-500.0,0.00019178,2]
[329187575,1718165448688,-500.0,0.00019178,2]
[329187577,1718165448698,-500.0,0.00019178,2]
[329187579,1718165448708,-501.86710004,0.00019178,2]
[329187581,1718165448718,-466.87154303,0.00019178,2]
[329187582,1718165448728,-500.0,0.00019178,2]
[329187584,1718165448739,-315.41843505,0.00019178,2]
[329187586,1718165448749,-500.0,0.00019178,2]
[329187587,1718165448759,-554.97620249,0.00019178,2]
[329187589,1718165448770,-367.19641541,0.00019178,2]
[329187591,1718165448780,-500.0,0.00019178,2]
[329187593,1718165448790,-500.0,0.00019178,2]
[329187595,1718165448801,-500.0,0.00019178,2]
[329187597,1718165448812,-500.0,0.00019178,2]
[329187599,1718165448823,-500.0,0.00019178,2]
[329187600,1718165448833,-500.0,0.00019178,2]
[329187602,1718165448844,-500.0,0.00019178,2]
[329187604,1718165448854,-357.25574382,0.00019178,2]
[329187606,1718165448864,-350.0,0.00019178,2]
[329187607,1718165448874,-500.0,0.00019178,2]
[329187609,1718165448884,-500.0,0.00019178,2]
[329187611,1718165448895,-500.0,0.00019178,2]
[329187613,1718165448905,-500.0,0.00019178,2]
[329187614,1718165448915,-500.0,0.00019178,2]
[329187616,1718165448925,-500.0,0.00019178,2]
[329187618,1718165448936,-500.0,0.00019178,2]
[329187620,1718165448946,-500.0,0.00019178,2]
[329187622,1718165448956,-500.0,0.00019178,2]
[329187624,1718165448965,-500.0,0.00019178,2]
[329187625,1718165448975,-500.0,0.00019178,2]
[329187627,1718165448990,-175.58617451,0.00019178,2]
[329187629,1718165449000,-209.89509603,0.00019178,2]
[329187631,1718165449010,-500.0,0.00019178,2]
[329187633,1718165449020,-500.0,0.00019178,2]
[329187635,1718165449030,-161.989589,0.00019178,2]
[329187637,1718165449040,-500.0,0.00019178,2]
[329187638,1718165449050,-335.86837216,0.00019178,2]
[329187640,1718165449061,-509.74183423,0.00019178,2]
[329187642,1718165449071,-500.0,0.00019178,2]
[329187644,1718165449082,-508.56811845,0.00019178,2]
[329187646,1718165449092,-500.0,0.00019178,2]
[329187648,1718165449103,-540.34125046,0.00019178,2]
[329187649,1718165449114,-500.0,0.00019178,2]
[329187651,1718165449124,-500.0,0.00019178,2]
[329187653,1718165449134,-506.40842379,0.00019178,2]
[329187655,1718165449146,-500.0,0.00019178,2]
[329187656,1718165449156,-509.85084912,0.00019178,2]
[329187658,1718165449172,-502.98133613,0.00019178,2]
[329187660,1718165449186,-508.49136258,0.00019178,2]
[329187662,1718165449198,-500.0,0.00019178,2]
[329187664,1718165449209,-500.0,0.00019178,2]
[329187666,1718165449219,-500.0,0.00019178,2]
[329187668,1718165449229,-503.47022271,0.00019178,2]
[329187670,1718165449239,-512.06160343,0.00019178,2]
[329187671,1718165449249,-500.0,0.00019178,2]
[329187673,1718165449260,-549.50178536,0.00019178,2]
[329187675,1718165449270,-515.13944401,0.00019178,2]
[329187677,1718165449281,-513.34584457,0.00019178,2]
[329187679,1718165449292,-500.0,0.00019178,2]
[329187681,1718165449302,-515.5148933,0.00019178,2]
[329187683,1718165449312,-509.04,0.00019178,2]
[329187684,1718165449322,-511.42643746,0.00019178,2]
[329187686,1718165449333,-500.0,0.00019178,2]
[329187688,1718165449343,-509.79992511,0.00019178,2]
[329187690,1718165449353,-500.0,0.00019178,2]
[329187692,1718165449364,-512.10930993,0.00019178,2]
[329187694,1718165449375,-506.94935328,0.00019178,2]
[329187696,1718165449385,-500.0,0.00019178,2]
[329187698,1718165449398,-500.20246543,0.00019178,2]
[329187700,1718165449409,-500.0,0.00019178,2]
[329187701,1718165449419,-507.01415772,0.00019178,2]
[329187703,1718165449430,-500.0,0.00019178,2]
[329187705,1718165449440,-497.86137613,0.00019178,2]
[329187707,1718165449451,-506.20435332,0.00019178,2]
[329187709,1718165449463,-502.45798101,0.00019178,2]
[329187711,1718165449473,-506.05612434,0.00019178,2]
[329187713,1718165449484,-579.81117007,0.00019178,2]
[329187715,1718165449494,-500.0,0.00019178,2]
[329187717,1718165449504,-536.28800948,0.00019178,2]
[329187719,1718165449515,-518.20300931,0.00019178,2]
[329187720,1718165449525,-503.17635446,0.00019178,2]
[329187722,1718165449535,-573.60971397,0.00019178,2]
[329187724,1718165449545,-514.42274752,0.00019178,2]
[329187726,1718165449556,-500.0,0.00019178,2]
[329187728,1718165449567,-500.0,0.00019178,2]
[329187730,1718165449577,-506.17982386,0.00019178,2]
[329187732,1718165449588,-511.50018048,0.00019178,2]
[329187733,1718165449598,-500.0,0.00019178,2]
[329187735,1718165449608,-609.85,0.00019178,2]
[329187737,1718165449618,-508.27204627,0.00019178,2]
[329187739,1718165449629,-498.75454931,0.00019178,2]
[329187741,1718165449639,-507.40278683,0.00019178,2]
[329187743,1718165449653,-500.0,0.00019178,2]
[329187745,1718165449664,-500.0,0.00019178,2]
[329187746,1718165449675,-600.06,0.00019178,2]
[329187748,1718165449686,-500.0,0.00019178,2]
[329187750,1718165449698,-514.00741093,0.00019178,2]
[329187752,1718165449708,-504.18535401,0.00019178,2]
[329187754,1718165449718,-155.49890386,0.00019178,2]
[329187756,1718165449729,-504.01062719,0.00019178,2]
[329187758,1718165449739,-500.0,0.00019178,2]
[329187760,1718165449749,-505.22630153,0.00019178,2]
[329187762,1718165449759,-151.0,0.00019178,2]
[329187763,1718165449769,-151.0,0.00019178,2]
[329187765,1718165449779,-151.0,0.00019178,2]
[329187767,1718165449789,-500.0,0.00019178,2]
[329187769,1718165449799,-500.0,0.00019178,2]
[329187771,1718165449809,-502.80123732,0.00019178,2]
[329187773,1718165449819,-505.62670891,0.00019178,2]
[329187775,1718165449829,-500.0,0.00019178,2]
[329187777,1718165449838,-500.0,0.00019178,2]
[329187778,1718165449848,-521.9,0.00019178,2]
[329187780,1718165449858,-924.79,0.00019178,2]
[329187782,1718165449868,-500.0,0.00019178,2]
[329187784,1718165449878,-503.88942021,0.00019178,2]
[329187786,1718165449888,-504.31818783,0.00019178,2]
[329187788,1718165449899,-501.13965807,0.00019178,2]
[329187789,1718165449909,-509.15560307,0.00019178,2]
[329187791,1718165449918,-500.0,0.00019178,2]
[329187793,1718165449927,-504.717992,0.00019178,2]
[329187795,1718165449937,-500.0,0.00019178,2]
[329187797,1718165449947,-504.65799985,0.00019178,2]
[329187799,1718165449956,-508.89765937,0.00019178,2]
[329187801,1718165449966,-503.98113168,0.00019178,2]
[329187802,1718165449977,-500.0,0.00019178,2]
[329187804,1718165449988,-151.0,0.00019178,2]
[329187806,1718165449998,-151.0,0.00019178,2]
[329187808,1718165450009,-151.0,0.00019178,2]
[329187810,1718165450019,-153.411354,0.00019178,2]
[329187812,1718165450029,-151.0,0.00019178,2]
[329187813,1718165450039,-151.0,0.00019178,2]
[329187815,1718165450050,-507.84514885,0.00019178,2]
[329187817,1718165450063,-532.9088427,0.00019178,2]
[329187819,1718165450074,-151.0,0.00019178,2]
[329187821,1718165450085,-500.0,0.00019178,2]
[329187823,1718165450095,-151.0,0.00019178,2]
[329187825,1718165450105,-151.0,0.00019178,2]
[329187827,1718165450115,-151.0,0.00019178,2]
[329187828,1718165450125,-508.42993173,0.00019178,2]
[329187830,1718165450135,-502.66386789,0.00019178,2]
[329187832,1718165450153,-150.0,0.00019178,2]
[329187834,1718165450179,-499.66581409,0.00019178,2]
[329187836,1718165450196,-500.0,0.00019178,2]
[329187838,1718165450207,-504.68989531,0.00019178,2]
[329187840,1718165450218,-500.0,0.00019178,2]
[329187841,1718165450229,-171.88620582,0.00019178,2]
[329187843,1718165450239,-500.0,0.00019178,2]
[329187845,1718165450250,-500.0,0.00019178,2]
[329187847,1718165450261,-500.0,0.00019178,2]
[329187849,1718165450272,-500.0,0.00019178,2]
[329187851,1718165450283,-506.20659625,0.00019178,2]
[329187853,1718165450293,-151.0,0.00019178,2]
[329187854,1718165450304,-151.0,0.00019178,2]
[329187856,1718165450315,-151.0,0.00019178,2]
[329187858,1718165450326,-151.0,0.00019178,2]
[329187860,1718165450337,-151.0,0.00019178,2]
[329187862,1718165450346,-151.0,0.00019178,2]
[329187864,1718165450357,-156.654229,0.00019178,2]
[329187865,1718165450368,-151.0,0.00019178,2]
[329187867,1718165450379,-541.08,0.00019178,2]
[329187869,1718165450393,-500.0,0.00019178,2]
[329187871,1718165450406,-151.0,0.00019178,2]
[329187873,1718165450422,-151.0,0.00019178,2]
[329187879,1718165450491,-151.0,0.00019178,2]
[329187881,1718165450502,-151.0,0.00019178,2]
[329187883,1718165450512,-263.023473,0.00019178,2]
[329187885,1718165450523,-151.0,0.00019178,2]
[329187887,1718165450533,-151.0,0.00019178,2]
[329187889,1718165450543,-239.95753,0.00019178,2]
[329187890,1718165450553,-500.0,0.00019178,2]
[329187891,1718165450563,-500.0,0.00019178,2]
[329187892,1718165450573,-507.81744685,0.00019178,2]
[329187893,1718165450583,-500.0,0.00019178,2]
[329187894,1718165450593,-508.79609099,0.00019178,2]
[329187895,1718165450603,-507.41973562,0.00019178,2]
[329187896,1718165450613,-500.0,0.00019178,2]
[329187897,1718165450623,-500.0,0.00019178,2]
[329187898,1718165450633,-511.06652767,0.00019178,2]
[329187899,1718165450645,-500.0,0.00019178,2]
[329187900,1718165450655,-2293.68,0.00019178,2]
[329187901,1718165450665,-500.0,0.00019178,2]
[329187902,1718165450675,-506.27094211,0.00019178,2]
[329187903,1718165450685,-506.76426543,0.00019178,2]
[329187904,1718165450695,-500.0,0.00019178,2]
[329187905,1718165450705,-500.0,0.00019178,2]
[329187906,1718165450716,-511.15185684,0.00019178,2]
[329187907,1718165450726,-500.0,0.00019178,2]
[329187908,1718165450735,-1150.16,0.00019178,2]
[329187910,1718165450746,-586.17,0.00019178,2]
[329187911,1718165450756,-500.0,0.00019178,2]
[329187913,1718165450766,-526.66555463,0.00019178,2]
[329187915,1718165450778,-503.60147502,0.00019178,2]
[329187917,1718165450788,-500.0,0.00019178,2]
[329187919,1718165450798,-500.0,0.00019178,2]
[329187921,1718165450809,-500.0,0.00019178,2]
[329187923,1718165450819,-502.03221748,0.00019178,2]
[329187925,1718165450829,-500.0,0.00019178,2]
[329187927,1718165450839,-500.0,0.00019178,2]
[329187929,1718165450850,-500.0,0.00019178,2]
[329187930,1718165450860,-256.20195441,0.00019178,2]
[329187932,1718165450870,-500.0,0.00019178,2]
[329187934,1718165450880,-424.43552752,0.00019178,2]
[329187936,1718165450890,-509.83838568,0.00019178,2]
[329187938,1718165450905,-502.60248075,0.00019178,2]
[329187940,1718165450914,-502.30878938,0.00019178,2]
[329187942,1718165450924,-500.0,0.00019178,2]
[329187944,1718165450934,-510.46649071,0.00019178,2]
[329187946,1718165450944,-552.04127753,0.00019178,2]
[329187948,1718165450954,-172.87775571,0.00019178,2]
[329187950,1718165450964,-506.54363083,0.00019178,2]
[329187952,1718165450974,-500.0,0.00019178,2]
[329187954,1718165450990,-478.20392236,0.00019178,2]
[329187956,1718165451001,-500.0,0.00019178,2]